bitfinex/quotes_BTCUSD_20250714
["timestamp","ask_amount","ask_price","bid_price","bid_amount"]
[1752531040359,0.1910493,120110.0,120100.0,0.52504913]
[1752531040742,0.05572388,120110.0,120100.0,0.52504913]
[1752531040980,0.18272388,120110.0,120100.0,0.52504913]
[1752531041198,0.05572388,120110.0,120100.0,0.52504913]
[1752531041407,0.19104923,120110.0,120100.0,0.52504913]
[1752531042102,0.17439853,120110.0,120100.0,0.52504913]
[1752531042533,0.00255339,120110.0,120100.0,0.98201606]
[1752531042752,0.0004,120120.0,120110.0,0.20799028]
[1752531042973,0.0004,120120.0,120110.0,0.8966361]
[1752531043204,0.0004,120120.0,120110.0,1.33252406]
[1752531043424,0.1274,120120.0,120110.0,1.33252406]
[1752531043639,0.00020272,120120.0,120110.0,1.34201822]
[1752531044079,0.00020272,120120.0,120110.0,1.46901822]
[1752531044929,0.00020272,120120.0,120110.0,1.49382259]
[1752531045148,0.00120272,120120.0,120110.0,1.49382259]
[1752531045406,0.00020272,120120.0,120110.0,1.49382259]
[1752531045651,0.00020272,120120.0,120110.0,1.36682259]
[1752531045858,0.00020272,120120.0,120110.0,1.49482259]
[1752531047003,0.00020272,120120.0,120110.0,1.36782259]
[1752531047203,0.00020272,120120.0,120110.0,1.49482259]
[1752531047759,0.00020272,120120.0,120110.0,1.36782259]
[1752531047964,0.00020272,120120.0,120110.0,1.49482259]
[1752531048593,0.00020272,120120.0,120110.0,1.36782259]
[1752531048795,0.00020272,120120.0,120110.0,1.51881702]
[1752531049195,0.002,120130.0,120120.0,0.21546876]
[1752531049405,0.002,120130.0,120120.0,1.19478486]
[1752531049640,0.002,120130.0,120120.0,1.21248571]
[1752531051569,0.003,120130.0,120120.0,1.21248571]
[1752531051780,0.002,120130.0,120120.0,1.21248571]
[1752531052248,0.002,120130.0,120120.0,1.21448571]
[1752531052456,0.00102489,120130.0,120120.0,1.21448571]
[1752531052680,0.0004,120140.0,120130.0,0.5314584]
[1752531052899,0.0004,120140.0,120130.0,1.11700258]
[1752531053144,0.0004,120140.0,120130.0,1.12016258]
[1752531054220,0.0004,120140.0,120130.0,1.12116258]
[1752531056558,6.866e-05,120140.0,120130.0,1.12116258]
[1752531065154,2.866e-05,120140.0,120130.0,1.12116258]
[1752531068620,0.0178,120150.0,120140.0,0.53952622]
[1752531068825,0.01992333,120150.0,120140.0,0.61034939]
[1752531069456,0.01992333,120150.0,120140.0,0.61884436]
[1752531070285,0.02092333,120150.0,120140.0,0.61884436]
[1752531073414,0.02092333,120150.0,120140.0,0.62091436]
[1752531073618,0.02092333,120150.0,120140.0,0.62405436]
[1752531075208,0.00552333,120150.0,120140.0,0.62405436]
[1752531078573,0.00023773,120150.0,120140.0,0.62405436]
[1752531085231,0.00013241,120150.0,120140.0,0.62405436]
[1752531087287,0.00013241,120150.0,120140.0,1.31339727]
[1752531087548,0.00013241,120150.0,120140.0,1.53822438]
[1752531088663,6.57e-06,120150.0,120140.0,1.41134438]
[1752531088901,6.57e-06,120150.0,120140.0,1.53822438]
[1752531091570,0.14428,120170.0,120160.0,0.1914106]
[1752531091747,0.145079,120170.0,120160.0,0.86799058]
[1752531092297,0.15339992,120170.0,120160.0,0.86799058]
[1752531092780,0.05916223,120170.0,120160.0,0.86799058]
[1752531092999,0.2234104,120160.0,120150.0,0.16644614]
[1752531093216,0.23174904,120150.0,120140.0,0.17479606]
[1752531093441,0.05696753,120150.0,120140.0,0.1997658]
[1752531093656,0.23370904,120150.0,120140.0,0.1997658]
[1752531093880,0.06049753,120150.0,120140.0,0.1997658]
[1752531094099,0.07704971,120150.0,120140.0,0.1997658]
[1752531094502,0.06872692,120150.0,120140.0,0.53330871]
[1752531094974,0.0422823,120150.0,120140.0,0.53330871]
[1752531095205,0.01796,120150.0,120140.0,0.53830871]
[1752531095420,0.18580795,120150.0,120140.0,0.51666238]
[1752531095632,0.18580795,120150.0,120140.0,0.53330885]
[1752531095850,0.36058946,120150.0,120140.0,0.53330885]
[1752531096504,0.19432911,120150.0,120140.0,0.54163198]
[1752531096713,0.18580788,120150.0,120140.0,0.54163198]
[1752531097341,0.36058933,120150.0,120140.0,0.51666238]
[1752531097556,0.34551424,120150.0,120140.0,0.33354291]
[1752531097790,0.33719145,120150.0,120140.0,0.50001535]
[1752531097999,0.33719145,120150.0,120140.0,0.51666245]
[1752531098214,0.17073244,120150.0,120140.0,0.53330892]
[1752531098418,0.04228237,120150.0,120140.0,0.60412082]
[1752531098649,0.03460488,120150.0,120140.0,0.60707082]
[1752531098857,0.02628237,120150.0,120140.0,0.60707082]
[1752531099069,0.05892774,120150.0,120140.0,0.60412082]
[1752531099283,0.23370925,120150.0,120140.0,0.51666245]
[1752531099490,0.21561933,120140.0,120130.0,0.51481026]
[1752531099702,0.06775378,120140.0,120130.0,0.86500131]
[1752531099910,0.18631016,120140.0,120130.0,0.87332534]
[1752531100313,0.36110615,120140.0,120130.0,0.87332534]
[1752531100522,0.19463371,120140.0,120130.0,0.87332534]
[1752531100749,0.17798668,120140.0,120130.0,0.87332534]
[1752531101366,0.3460294,120140.0,120130.0,0.33354291]
[1752531101578,0.4190531,120140.0,120130.0,0.33354291]
[1752531102490,0.2921731,120140.0,120130.0,0.33354291]
[1752531102701,0.2921731,120140.0,120120.0,0.50204307]
[1752531102702,0.20651061,120130.0,120120.0,0.50204307]
[1752531102950,0.20847061,120130.0,120120.0,0.50204307]
[1752531103159,0.22668874,120130.0,120120.0,0.51869287]
[1752531104001,0.22681624,120130.0,120120.0,0.51869287]
[1752531104219,0.22524624,120130.0,120120.0,0.51036807]
[1752531104431,0.22524624,120130.0,120120.0,0.518693]
[1752531104644,0.22524624,120130.0,120120.0,0.52701786]
[1752531104861,0.21692221,120130.0,120120.0,0.59803608]
[1752531105793,0.21692221,120130.0,120120.0,0.60636088]
[1752531106210,0.21692221,120130.0,120120.0,0.61468554]
[1752531106438,0.21692221,120130.0,120120.0,0.61468513]
[1752531106650,0.05875966,120130.0,120120.0,0.61468472]
[1752531106857,0.24189451,120130.0,120120.0,0.61468472]
[1752531107066,0.23357062,120130.0,120120.0,0.6063602]
[1752531107489,0.22524652,120130.0,120120.0,0.58971095]
[1752531107701,0.22524652,120130.0,120120.0,0.51869273]
[1752531108112,0.22524652,120130.0,120120.0,0.52701746]
[1752531109113,0.22524652,120130.0,120120.0,0.53534205]
[1752531109314,0.05043591,120130.0,120120.0,0.54366657]
[1752531109732,0.21692221,120130.0,120120.0,0.54366657]
[1752531110293,0.05043591,120130.0,120120.0,0.54366657]
[1752531110882,0.05043563,120130.0,120120.0,0.54366657]
[1752531111374,0.05043563,120130.0,120120.0,0.61497963]
[1752531111583,0.05043563,120130.0,120120.0,0.28143672]
[1752531111800,0.05043563,120130.0,120120.0,0.61497963]
[1752531112229,0.05043522,120130.0,120120.0,0.61497963]
[1752531112441,0.05875939,120130.0,120120.0,0.61497963]
[1752531114057,0.05875939,120130.0,120120.0,0.61792963]
[1752531114661,0.42671904,120130.0,120120.0,0.002]
[1752531115093,0.42671904,120130.0,120120.0,0.33554291]
[1752531117519,0.42514904,120130.0,120120.0,0.33554291]
[1752531117732,0.42614904,120130.0,120120.0,0.33554291]
[1752531121147,0.13278233,120130.0,120120.0,0.85747557]
[1752531121344,0.13278233,120130.0,120120.0,0.86580009]
[1752531121345,0.1280075,120130.0,120120.0,0.86580009]
[1752531121604,0.1280075,120130.0,120120.0,0.89650009]
[1752531121851,0.000328,120170.0,120160.0,0.1914106]
[1752531122092,0.000328,120170.0,120160.0,0.87975748]
[1752531122330,0.000328,120170.0,120160.0,0.88287748]
[1752531123312,0.13603998,120170.0,120160.0,0.88287748]
[1752531123576,0.02580243,120170.0,120160.0,0.88287748]
[1752531123813,0.00083893,120170.0,120160.0,1.33382945]
[1752531124041,0.00283893,120170.0,120160.0,1.46070945]
[1752531124270,0.00283893,120170.0,120160.0,1.48523111]
[1752531124729,0.00083893,120170.0,120160.0,1.48523111]
[1752531124941,0.00083893,120170.0,120160.0,1.35835111]
[1752531125154,0.00083893,120170.0,120160.0,1.48623111]
[1752531125606,0.00083893,120170.0,120160.0,1.54623111]
[1752531125820,0.00083893,120170.0,120160.0,1.41935111]
[1752531126033,7.799e-05,120170.0,120160.0,1.50069822]
[1752531126269,0.0004,120220.0,120210.0,0.19133098]
[1752531126505,0.0004,120220.0,120210.0,0.59688747]
[1752531126742,0.0005533,120220.0,120210.0,0.93355038]
[1752531126969,0.0005533,120220.0,120210.0,1.06043038]
[1752531128090,0.0005533,120220.0,120210.0,0.93355038]
[1752531128315,0.0005533,120220.0,120210.0,1.06039038]
[1752531129475,0.0005533,120220.0,120210.0,1.57073237]
[1752531129684,0.0005533,120220.0,120210.0,1.25358946]
[1752531129898,0.0005533,120220.0,120210.0,1.06103834]
[1752531130109,0.0005533,120220.0,120210.0,0.94809123]
[1752531130320,0.0025633,120220.0,120210.0,0.20593608]
[1752531130527,0.0005533,120220.0,120210.0,0.55611577]
[1752531130739,0.14402849,120220.0,120210.0,0.55911577]
[1752531130951,0.14402849,120220.0,120210.0,0.55611577]
[1752531131163,0.20218597,120220.0,120210.0,0.20901471]
[1752531131367,0.01918849,120220.0,120210.0,0.56019454]
[1752531131575,0.16266416,120220.0,120210.0,0.56331454]
[1752531131822,0.16266416,120220.0,120210.0,0.60060893]
[1752531132236,0.16266409,120220.0,120210.0,0.60060893]
[1752531132447,0.16266409,120220.0,120210.0,0.53943266]
[1752531132647,0.0005533,120220.0,120210.0,0.53943266]
[1752531132861,0.13571083,120220.0,120210.0,0.53943266]
[1752531133070,0.1273933,120220.0,120210.0,0.53943266]
[1752531133288,0.0005533,120220.0,120210.0,0.55523266]
[1752531133504,0.1273533,120220.0,120210.0,0.91103266]
[1752531133745,0.13567089,120220.0,120210.0,0.56168975]
[1752531134010,0.00887083,120220.0,120210.0,0.89523266]
[1752531134271,0.13571083,120220.0,120210.0,0.89523266]
[1752531134521,0.00887083,120220.0,120210.0,0.87943266]
[1752531134768,0.15234636,120220.0,120210.0,0.87943266]
[1752531135253,0.15234636,120220.0,120210.0,0.87010914]
[1752531135491,0.15234629,120220.0,120210.0,0.87010914]
[1752531135706,0.14402849,120220.0,120210.0,0.87010914]
[1752531135928,0.03382416,120220.0,120210.0,0.87010914]
[1752531136137,0.18556064,120220.0,120210.0,0.5126155]
[1752531136345,0.31236064,120220.0,120210.0,0.52093413]
[1752531136561,0.31236064,120220.0,120210.0,0.34624]
[1752531136715,0.30404291,120220.0,120210.0,0.001]
[1752531137110,0.17724291,120220.0,120210.0,0.17469413]
[1752531137312,0.30504291,120220.0,120210.0,0.18825269]
[1752531137575,0.30504291,120220.0,120210.0,0.2586333]
[1752531137888,0.30404291,120220.0,120210.0,0.2586333]
[1752531138433,0.17724291,120220.0,120210.0,0.07562061]
[1752531138656,0.30704291,120220.0,120210.0,0.07038061]
[1752531138890,0.30704291,120220.0,120210.0,0.25339344]
[1752531139114,0.30704291,120220.0,120210.0,0.266952]
[1752531139512,0.30704291,120220.0,120210.0,0.25863344]
[1752531139755,0.30704291,120220.0,120210.0,0.266952]
[1752531139998,0.30704291,120220.0,120210.0,0.27527042]
[1752531140665,0.18024291,120220.0,120210.0,0.27527042]
[1752531140884,0.30704291,120220.0,120210.0,0.18613276]
[1752531141109,0.18024291,120220.0,120210.0,0.18613276]
[1752531141321,0.32367865,120220.0,120210.0,0.20488961]
[1752531141535,0.33199673,120220.0,120210.0,0.20488961]
[1752531141741,0.323679,120220.0,120210.0,0.19657125]
[1752531141945,0.30704305,120220.0,120210.0,0.1799342]
[1752531142159,0.30704305,120220.0,120210.0,0.19657125]
[1752531142577,0.00831877,120210.0,120200.0,0.17781623]
[1752531142788,0.00831815,120210.0,120200.0,0.53657426]
[1752531142994,0.03327336,120210.0,120200.0,0.93232925]
[1752531143412,0.1517548,120210.0,120200.0,0.93232925]
[1752531143617,0.03327336,120210.0,120200.0,0.93232925]
[1752531143832,0.33476818,120210.0,120200.0,0.93232925]
[1752531144039,0.16839268,120210.0,120200.0,0.93232925]
[1752531144249,0.02495521,120210.0,120200.0,0.93232925]
[1752531144484,0.16007384,120210.0,120200.0,0.93232925]
[1752531144688,0.16007384,120210.0,120190.0,0.85035872]
[1752531144689,0.00831912,120200.0,120190.0,0.85035872]
[1752531144912,0.19966589,120200.0,120190.0,0.67777954]
[1752531145140,0.17472286,120190.0,120180.0,0.17764793]
[1752531145362,0.32016303,120190.0,120180.0,0.17764793]
[1752531145582,0.32016303,120190.0,120180.0,0.17976793]
[1752531145808,0.31816303,120190.0,120180.0,0.58808864]
[1752531146068,0.1434392,120190.0,120180.0,0.97250959]
[1752531146279,0.1434392,120190.0,120180.0,0.98810959]
[1752531146422,0.15175901,120190.0,120180.0,0.98810959]
[1752531146630,0.1434392,120190.0,120180.0,0.98910959]
[1752531146831,0.1828755,120210.0,120190.0,0.18304288]
[1752531147043,0.18301269,120210.0,120200.0,0.50395813]
[1752531147309,0.3034742,120210.0,120200.0,0.00503]
[1752531147562,0.1766742,120210.0,120200.0,0.17141935]
[1752531147697,0.30149399,120210.0,120200.0,0.19637691]
[1752531147901,0.32644961,120210.0,120200.0,0.18805793]
[1752531148216,0.32644961,120210.0,120200.0,0.23161856]
[1752531148440,0.01663678,120210.0,120200.0,0.55583795]
[1752531148655,0.01663678,120210.0,120200.0,0.56415693]
[1752531148656,0.15175521,120210.0,120200.0,0.56415693]
[1752531148866,0.16007384,120210.0,120200.0,0.56415693]
[1752531149254,0.15287521,120210.0,120200.0,0.56415693]
[1752531149624,0.16119384,120210.0,120200.0,0.56415693]
[1752531150228,0.32756934,120210.0,120200.0,0.55583795]
[1752531150448,0.33588811,120210.0,120200.0,0.57247612]
[1752531150652,0.20896811,120210.0,120200.0,0.57247612]
[1752531150861,0.16947261,120210.0,120200.0,0.5807951]
[1752531151061,0.33584811,120210.0,120200.0,0.55583795]
[1752531151346,0.31921146,120210.0,120200.0,0.19637731]
[1752531152159,0.31921146,120210.0,120200.0,0.2046965]
[1752531152311,0.31921146,120210.0,120200.0,0.21301562]
[1752531153716,0.31921146,120210.0,120200.0,0.21301528]
[1752531154034,0.19233146,120210.0,120200.0,0.21301528]
[1752531154277,0.3128329,120210.0,120200.0,0.00503]
[1752531154505,0.16638935,120200.0,120180.0,0.19324793]
[1752531154732,0.18304288,120190.0,120180.0,0.17764793]
[1752531155000,0.30992288,120190.0,120180.0,0.18804857]
[1752531155226,0.30992288,120190.0,120180.0,0.19636914]
[1752531155456,0.17472321,120190.0,120180.0,0.17972793]
[1752531155693,0.29328319,120190.0,120180.0,0.17976789]
[1752531155928,0.31050319,120190.0,120180.0,0.001]
[1752531156172,0.18305853,120180.0,120170.0,0.06808305]
[1752531156421,0.18305853,120180.0,120150.0,0.18604124]
[1752531156422,0.00832168,120160.0,120150.0,0.18604124]
[1752531156625,0.13528168,120160.0,120150.0,0.1964441]
[1752531156896,0.14360357,120160.0,120150.0,0.55098495]
[1752531157122,0.14360357,120160.0,120150.0,0.56668495]
[1752531157557,0.13528168,120160.0,120150.0,0.89141527]
[1752531157763,0.13528168,120160.0,120150.0,0.56791527]
[1752531157949,0.13528168,120160.0,120150.0,0.90791527]
[1752531158361,0.13528161,120160.0,120150.0,0.90791527]
[1752531159424,0.13528161,120160.0,120150.0,0.90891527]
[1752531159636,0.15192518,120160.0,120150.0,0.90891527]
[1752531159838,0.14360329,120160.0,120150.0,0.90891527]
[1752531160065,0.15192511,120160.0,120150.0,0.90891527]
[1752531160268,0.14360329,120160.0,120150.0,0.90891527]
[1752531160906,0.15192511,120160.0,120150.0,0.90891527]
[1752531161612,0.13528161,120160.0,120150.0,0.90891527]
[1752531162587,0.12696,120160.0,120150.0,0.90891527]
[1752531162761,0.18305853,120180.0,120160.0,0.1914106]
[1752531162984,0.13524105,120170.0,120160.0,0.1914106]
[1752531163521,0.14356224,120170.0,120160.0,0.1934906]
[1752531163743,0.15188357,120170.0,120160.0,0.1964406]
[1752531163951,0.19971592,120170.0,120160.0,0.18811885]
[1752531164168,0.31831487,120170.0,120160.0,0.1797969]
[1752531164386,0.30999368,120170.0,120160.0,0.1797969]
[1752531164616,0.30999368,120170.0,120160.0,0.18811899]
[1752531164911,0.31197368,120170.0,120160.0,0.00503]
[1752531165125,0.18308913,120160.0,120150.0,0.49412647]
[1752531165337,0.18308913,120160.0,120150.0,0.18863272]
[1752531165529,0.31004913,120160.0,120150.0,0.18863272]
[1752531165737,0.18308913,120160.0,120150.0,0.51285211]
[1752531165961,0.151926,120160.0,120150.0,0.59917578]
[1752531166183,0.15192593,120160.0,120150.0,0.59917578]
[1752531166654,0.15192593,120160.0,120150.0,0.60017578]
[1752531167879,0.14360343,120160.0,120150.0,0.61587578]
[1752531168095,0.15192538,120160.0,120150.0,0.61587578]
[1752531168282,0.14360343,120160.0,120150.0,0.63097578]
[1752531168728,0.15192538,120160.0,120150.0,0.63097578]
[1752531168953,0.16024747,120160.0,120150.0,0.61587578]
[1752531169384,0.33501444,120160.0,120150.0,0.61587592]
[1752531169631,0.33501444,120160.0,120150.0,0.62419843]
[1752531170799,0.1685697,120160.0,120150.0,0.62419795]
[1752531171945,0.32669283,120160.0,120150.0,0.59923069]
[1752531172143,0.32669283,120160.0,120150.0,0.60755327]
[1752531172279,0.32669283,120160.0,120150.0,0.61587578]
[1752531173018,0.32669283,120160.0,120150.0,0.60826017]
[1752531174266,0.15192586,120160.0,120150.0,0.61658261]
[1752531175334,0.32669283,120160.0,120150.0,0.60826017]
[1752531175721,0.15192586,120160.0,120150.0,0.61658261]
[1752531176040,0.32669276,120160.0,120150.0,0.60826017]
[1752531176256,0.32669317,120160.0,120150.0,0.59993766]
[1752531176399,0.31837122,120160.0,120150.0,0.59161508]
[1752531176810,0.31837122,120160.0,120150.0,0.59993773]
[1752531177217,0.31837122,120160.0,120150.0,0.60826031]
[1752531177684,0.31837122,120160.0,120150.0,0.61658282]
[1752531180162,0.31837122,120160.0,120150.0,0.28427904]
[1752531180381,0.31004913,120160.0,120150.0,0.58329236]
[1752531180585,0.31004913,120160.0,120150.0,0.59161515]
[1752531180797,0.31004913,120160.0,120150.0,0.53025929]
[1752531181285,0.18308913,120160.0,120150.0,0.53025929]
[1752531181504,0.30996913,120160.0,120150.0,0.53858194]
[1752531182361,0.30996913,120160.0,120150.0,0.41347859]
[1752531182584,0.29176408,120160.0,120150.0,0.00151093]
[1752531182799,0.62406786,120160.0,120150.0,0.00151093]
[1752531183226,0.41872408,120160.0,120150.0,0.00151093]
[1752531183441,0.41872408,120160.0,120150.0,0.33381471]
[1752531183654,0.29176408,120160.0,120150.0,0.0013918]
[1752531183844,0.77695663,120160.0,120150.0,0.0013918]
[1752531184079,0.77695663,120160.0,120150.0,0.0003918]
[1752531184288,0.78095663,120160.0,120150.0,0.0003918]
[1752531184988,0.44865285,120160.0,120150.0,0.0003918]
[1752531185467,0.32165285,120160.0,120150.0,0.0003918]
[1752531185676,0.42276408,120160.0,120150.0,0.0003918]
[1752531186107,0.29576408,120160.0,120150.0,0.0003918]
[1752531186273,0.42284408,120160.0,120150.0,0.0003918]
[1752531187094,0.29576408,120160.0,120150.0,0.0003918]
[1752531187293,0.76288408,120160.0,120150.0,0.0003918]
[1752531187724,0.84420142,120160.0,120150.0,0.0003918]
[1752531188855,0.63576408,120160.0,120150.0,0.0003918]
[1752531189058,0.76288408,120160.0,120150.0,0.0003918]
[1752531189463,0.76284408,120160.0,120150.0,0.0003918]
[1752531195718,0.63576408,120160.0,120150.0,0.0003918]
[1752531195934,0.76272408,120160.0,120150.0,0.0003918]
[1752531197037,0.84404142,120160.0,120150.0,0.0003918]
[1752531198164,0.63576408,120160.0,120150.0,0.0003918]
[1752531198392,0.29419408,120160.0,120150.0,0.0003918]
[1752531198637,0.42123408,120160.0,120150.0,0.0003918]
[1752531199117,0.42280408,120160.0,120150.0,0.0003918]
[1752531200500,0.29576408,120160.0,120150.0,0.0003918]
[1752531200765,0.42276408,120160.0,120150.0,0.0003918]
[1752531201891,0.42119408,120160.0,120150.0,0.0003918]
[1752531204095,0.29419408,120160.0,120150.0,0.0003918]
[1752531204327,0.42119408,120160.0,120150.0,0.0003918]
[1752531204988,0.40509408,120160.0,120150.0,0.0003918]
[1752531207112,0.38303963,120160.0,120150.0,0.0003918]
[1752531208708,0.25603963,120160.0,120150.0,0.0003918]
[1752531208930,0.38299963,120160.0,120150.0,0.0003918]
[1752531209880,0.39949963,120160.0,120150.0,0.0003918]
[1752531210965,0.43381784,120160.0,120150.0,0.0003918]
[1752531211774,0.27253963,120160.0,120150.0,0.0003918]
[1752531211978,0.39941963,120160.0,120150.0,0.0003918]
[1752531214667,0.38291963,120160.0,120150.0,0.0003918]
[1752531216278,0.25603963,120160.0,120150.0,0.0003918]
[1752531216499,0.35193333,120160.0,120150.0,0.36863775]
[1752531216949,0.22505333,120160.0,120150.0,0.35343775]
[1752531217086,0.35201333,120160.0,120150.0,0.35343775]
[1752531217763,0.35201333,120160.0,120150.0,0.40894344]
[1752531218148,0.35201333,120160.0,120150.0,0.07651749]
[1752531219720,0.35201333,120160.0,120150.0,0.0210118]
[1752531220380,0.02896566,120160.0,120150.0,0.62567541]
[1752531220615,0.13928168,120160.0,120150.0,0.62567541]
[1752531220832,0.004,120160.0,120150.0,1.31264221]
[1752531221022,0.13096,120160.0,120150.0,1.31264221]
[1752531221574,0.12696,120160.0,120150.0,1.31264221]
[1752531221772,0.12796,120160.0,120150.0,1.31264221]
[1752531222188,0.12796,120160.0,120150.0,0.98021626]
[1752531222390,0.19971531,120170.0,120160.0,0.21438885]
[1752531222590,0.0416059,120170.0,120160.0,0.55722662]
[1752531222795,0.16024443,120170.0,120160.0,0.56877837]
[1752531223019,0.1519231,120170.0,120160.0,0.56877837]
[1752531223466,0.14360191,120170.0,120160.0,0.56877837]
[1752531223707,0.15192303,120170.0,120160.0,0.56877837]
[1752531223956,0.15292303,120170.0,120160.0,0.56877837]
[1752531224169,0.16124429,120170.0,120160.0,0.56877837]
[1752531224541,0.14460191,120170.0,120160.0,0.56877837]
[1752531225082,0.16124429,120170.0,120160.0,0.56877837]
[1752531226240,0.16956569,120170.0,120160.0,0.56877837]
[1752531226761,0.16124429,120170.0,120160.0,0.56877837]
[1752531226985,0.16956569,120170.0,120160.0,0.56877837]
[1752531228660,0.16124429,120170.0,120160.0,0.56877837]
[1752531229116,0.13628092,120170.0,120160.0,0.56877837]
[1752531229752,0.1529231,120170.0,120160.0,0.56877837]
[1752531229950,0.33599685,120170.0,120160.0,0.56877837]
[1752531230336,0.16956597,120170.0,120160.0,0.56877837]
[1752531230541,0.13628092,120170.0,120160.0,0.56877837]
[1752531230745,0.001,120170.0,120160.0,0.91574517]
[1752531230948,0.11488,120170.0,120160.0,0.91574517]
[1752531232295,0.12320105,120170.0,120160.0,0.91574517]
[1752531232500,0.11488,120170.0,120160.0,0.91574517]
[1752531236573,0.12320099,120170.0,120160.0,0.91574517]
[1752531237480,0.13152211,120170.0,120160.0,0.91574517]
[1752531237621,0.12320099,120170.0,120160.0,1.25574517]
[1752531237820,0.13152218,120170.0,120160.0,1.25574517]
[1752531238530,0.13152211,120170.0,120160.0,1.25574517]
[1752531239263,0.12320099,120170.0,120160.0,1.25574517]
[1752531239676,0.11488,120170.0,120160.0,1.25574517]
[1752531242163,0.03328221,120180.0,120170.0,0.19139466]
[1752531242409,0.30355782,120180.0,120170.0,0.33242595]
[1752531242633,0.01664204,120170.0,120160.0,0.91315138]
[1752531242853,0.03328463,120170.0,120160.0,0.93102138]
[1752531243062,0.03328456,120170.0,120160.0,0.93102138]
[1752531243717,0.15180323,120170.0,120160.0,0.93102138]
[1752531244573,0.15280323,120170.0,120160.0,0.93102138]
[1752531244786,0.16112463,120170.0,120160.0,0.93102138]
[1752531245013,0.15280323,120170.0,120160.0,0.93102138]
[1752531245219,0.16112456,120170.0,120160.0,0.93102138]
[1752531245432,0.03428456,120170.0,120160.0,0.93102138]
[1752531245635,0.04260603,120170.0,120160.0,0.91512138]
[1752531245841,0.16944603,120170.0,120160.0,0.91512138]
[1752531246047,0.04260596,120170.0,120160.0,0.91512138]
[1752531246295,0.16112456,120170.0,120160.0,0.91512138]
[1752531246495,0.14448204,120170.0,120160.0,0.93042138]
[1752531246844,0.13616092,120170.0,120160.0,0.93042138]
[1752531247038,0.14448191,120170.0,120160.0,0.93042138]
[1752531247800,0.15280296,120170.0,120160.0,0.93042138]
[1752531249275,0.12784,120170.0,120160.0,1.26284733]
[1752531249496,0.11785708,120170.0,120160.0,1.26284733]
[1752531250544,0.00832029,120180.0,120170.0,0.19139466]
[1752531250744,0.00831967,120190.0,120180.0,0.20787861]
[1752531250874,0.15179957,120190.0,120180.0,0.55797456]
[1752531251105,0.15179957,120190.0,120180.0,0.54520456]
[1752531251896,0.16311966,120190.0,120180.0,0.54520456]
[1752531252091,0.20268285,120190.0,120180.0,0.5203842]
[1752531252310,0.32120318,120190.0,120180.0,0.5120637]
[1752531252644,0.32120318,120190.0,120180.0,0.52038434]
[1752531252918,0.19436318,120190.0,120180.0,0.52038434]
[1752531253121,0.32965583,120190.0,120180.0,0.54534584]
[1752531254072,0.32120318,120190.0,120180.0,0.54534584]
[1752531254653,0.1464799,120190.0,120180.0,0.54534549]
[1752531255075,0.31288309,120190.0,120180.0,0.5203842]
[1752531255271,0.32120318,120190.0,120180.0,0.5203842]
[1752531255482,0.32120318,120190.0,120180.0,0.60060621]
[1752531255685,0.32935096,120190.0,120180.0,0.60892664]
[1752531255883,0.16294735,120190.0,120180.0,0.617247]
[1752531256081,0.14647955,120190.0,120180.0,0.617247]
[1752531256283,0.14647955,120190.0,120180.0,0.66238785]
[1752531256284,0.003,120190.0,120180.0,0.66238785]
[1752531256701,0.003,120190.0,120180.0,1.00238785]
[1752531257319,0.14347775,120200.0,120190.0,0.23810368]
[1752531257692,0.14347775,120200.0,120190.0,0.58384545]
[1752531258532,0.14356279,120200.0,120190.0,0.58384545]
[1752531258752,0.16952041,120200.0,120190.0,0.58384545]
[1752531259537,0.16120109,120200.0,120190.0,0.58384545]
[1752531259868,0.15288184,120200.0,120190.0,0.58384545]
[1752531260098,0.16120096,120200.0,120190.0,0.58384545]
[1752531260531,0.16952021,120200.0,120190.0,0.58384545]
[1752531260728,0.16952076,120200.0,120190.0,0.58384545]
[1752531260949,0.16120137,120200.0,120190.0,0.58384545]
[1752531261830,0.16952069,120200.0,120190.0,0.58384545]
[1752531263416,0.33591052,120200.0,120190.0,0.54332578]
[1752531263627,0.33591052,120200.0,120180.0,0.88885526]
[1752531263628,0.19136283,120190.0,120180.0,0.88885526]
[1752531263826,0.19136283,120190.0,120180.0,0.89156619]
[1752531264102,0.31820283,120190.0,120180.0,0.89156619]
[1752531264706,0.32652298,120190.0,120180.0,0.89156619]
[1752531264946,0.14347948,120190.0,120180.0,0.89156619]
[1752531265173,0.00840402,120200.0,120190.0,0.57730354]
[1752531265410,0.16852048,120200.0,120190.0,0.90381923]
[1752531265653,0.16852048,120200.0,120190.0,0.90675923]
[1752531266930,0.16952048,120200.0,120190.0,0.90675923]
[1752531267151,0.32759099,120200.0,120190.0,0.89843956]
[1752531267881,0.16120164,120200.0,120190.0,0.89843956]
[1752531268089,0.16120164,120200.0,120190.0,0.90675923]
[1752531268302,0.16952103,120200.0,120190.0,0.90675923]
[1752531270981,0.3295714,120200.0,120190.0,0.34491]
[1752531271200,0.17472321,120190.0,120180.0,0.60885988]
[1752531271424,0.19968299,120190.0,120180.0,0.95155626]
[1752531271653,0.0332798,120190.0,120180.0,0.96675626]
[1752531271912,0.17579378,120200.0,120190.0,0.22110388]
[1752531272138,0.14452362,120200.0,120190.0,0.5802995]
[1752531272376,0.14452362,120200.0,120190.0,0.5832395]
[1752531274542,0.30991297,120200.0,120190.0,0.55153978]
[1752531274753,0.30991297,120200.0,120190.0,0.55985952]
[1752531274966,0.30991297,120200.0,120190.0,0.55153978]
[1752531275170,0.31091297,120200.0,120190.0,0.53490009]
[1752531275401,0.31091297,120200.0,120190.0,0.54321997]
[1752531275641,0.31091297,120200.0,120190.0,0.55153978]
[1752531277751,0.31091297,120200.0,120190.0,0.53490009]
[1752531279461,0.29427439,120200.0,120190.0,0.3518568]
[1752531279685,0.17472334,120190.0,120180.0,0.92464101]
[1752531279912,0.17472334,120190.0,120180.0,0.92659101]
[1752531280133,0.17472334,120190.0,120180.0,0.93491151]
[1752531280615,0.30152334,120190.0,120180.0,0.93491151]
[1752531281056,0.30152334,120190.0,120180.0,0.94323194]
[1752531281259,0.14343997,120190.0,120180.0,0.9673523]
[1752531281479,0.31816325,120190.0,120180.0,0.9673523]
[1752531281686,0.15176006,120190.0,120180.0,0.9673523]
[1752531281905,0.31816325,120190.0,120180.0,0.9673523]
[1752531282296,0.15176006,120190.0,120180.0,0.9673523]
[1752531283206,0.16007994,120190.0,120180.0,0.9673523]
[1752531283410,0.00831967,120190.0,120180.0,0.9837523]
[1752531283616,0.17479385,120200.0,120190.0,0.19136303]
[1752531283831,0.17479385,120200.0,120190.0,0.54321983]
[1752531283832,0.3099131,120200.0,120190.0,0.54321983]
[1752531283974,0.3099131,120200.0,120190.0,0.5673395]
[1752531284192,0.1601615,120200.0,120190.0,0.5837395]
[1752531284430,0.16848089,120200.0,120190.0,0.5837395]
[1752531284638,0.16848089,120200.0,120190.0,0.5673395]
[1752531284847,0.33487024,120200.0,120190.0,0.5673395]
[1752531285591,0.3265514,120200.0,120190.0,0.55070009]
[1752531285806,0.31823235,120200.0,120190.0,0.55070009]
[1752531286000,0.32023235,120200.0,120190.0,0.55070009]
[1752531286860,0.32023235,120200.0,120190.0,0.55901997]
[1752531287993,0.32023235,120200.0,120190.0,0.6393373]